[Event "Sardinia World Festival-A 2024"]
[Site "Orosei"]
[Date "2024.04.29"]
[Round "3.4"]
[White "Fromm, Marius"]
[Black "Moussard, Jules"]
[Result "0-1"]
[ECO "B52"]
[WhiteElo "2454"]
[BlackElo "2610"]
[Annotator "TA"]
[PlyCount "126"]
[EventDate "2024.04.26"]
[EventType "swiss"]
[EventCountry "ITA"]
[SourceTitle "playchess.com"]
[Source "ChessBase"]
[SourceQuality "1"]
[TimeControl "40/5400+30:1800+30"]

{[%evp 52,126,10,0,0,0,0,0,0,0,0,0,73,71,85,89,93,86,118,34,13,40,25,0,0,0,0,0,0,0,0,0,0,0,0,0,0,0,0,0,0,0,0,0,0,0,0,0,0,0,0,0,0,0,0,0,0,0,0,0,0,0,-4,-1112,-943,-641,-638,-4818,-5073,-4231,-3323,-6127,-6119,-4133,-3184,-29983,-29984]} 1. e4 {[%emt 0:00:04]} c5 {[%emt 0:10:06]} 2. Nf3 {[%emt 0:00:07]} d6 {[%emt 0:00:06]} 3. Bb5+ {[%emt 0:00:10]} Bd7 {[%emt 0:00:06]} 4. Bxd7+ {[%emt 0:00:19]} Nxd7 {[%emt 0:00:05]} 5. O-O {[%emt 0:04:46]} e6 {[%emt 0:00:13]} 6. c4 {[%emt 0:01:01] B52: Sicilian: Moscow Variation with 3...Bd7.} Be7 {[%emt 0:02:52] 6...Ne5 is a critical line.} 7. d4 {[%emt 0:03:14]} cxd4 {[%emt 0:00:07]} 8. Nxd4 {[%emt 0:01:00]} a6 {[%emt 0:00:09]} 9. b3 {[%emt 0:01:01]} Bf6 {[%emt 0:02:09]} 10. Nc3 {[%emt 0:03:19]} Rc8 $146 {[%emt 0:06:20]} ({Predecessor:} 10... Ne7 11. Bb2 O-O 12. Nde2 Nc5 13. Qc2 Nc6 14. Ng3 Nb4 15. Qe2 Nbd3 16. Rad1 Nxb2 17. Qxb2 {½-½ Sadhwani,R (2654)-Amangeldy,E (2134) Wch Rapid Samarkand 2023 (8)}) 11. Bb2 {[%emt 0:02:09]} Ne7 {[%emt 0:00:34]} 12. Rc1 {[%emt 0:02:03]} O-O {[%emt 0:01:23]} 13. Qd2 {[%emt 0:03:05]} Nc6 {[%emt 0:02:42]} 14. Nxc6 {[%emt 0:17:20]} Rxc6 {[%emt 0:00:06]} 15. Ne2 {[%emt 0:01:05]} Nc5 {[%emt 0:09:13]} 16. Bxf6 {[%emt 0:03:11]} Qxf6 {[%emt 0:02:43]} 17. Nd4 {[%emt 0:01:07]} Rcc8 {[%emt 0:02:39]} 18. Rfe1 {[%emt 0:01:20]} Rfd8 {[%emt 0:01:46]} 19. Qe3 {[%emt 0:02:19]} Nd7 {[%emt 0:03:08]} 20. h3 {[%emt 0:03:44]} Qe5 {[%emt 0:01:04]} 21. Rcd1 {[%emt 0:04:16]} Nf6 {[%emt 0:07:29]} 22. Re2 {[%emt 0:04:49]} h6 {[%emt 0:01:11]} 23. Nf3 {[%emt 0:03:02]} Qc5 {[%emt 0:05:49]} 24. Nd4 {[%emt 0:10:40]} b5 {[%emt 0:07:29]} 25. cxb5 {[%emt 0:03:52]} axb5 {[%emt 0:00:12]} 26. Rc2 {[%emt 0:00:54]} Qh5 {[%emt 0:02:18]} 27. f3 {[%emt 0:08:35]} Rxc2 {[%emt 0:05:17]} 28. Nxc2 {[%emt 0:00:02]} d5 {[%emt 0:00:16]} 29. e5 {[%emt 0:05:40]} Nd7 {[%emt 0:03:31]} 30. Nd4 {[%emt 0:00:05]} Ra8 {[%emt 0:02:47]} (30... Nxe5 $6 31. g4 Qg5 (31... Qxh3 $2 32. Qxe5 Ra8 33. Rd2 $18) 32. f4 Nxg4 33. Qg3 $16 (33. Qf3 Ne5+ 34. fxg5 Nxf3+ 35. Nxf3 hxg5 $16)) 31. Rd2 {[%emt 0:00:58]} Rb8 {[%emt 0:08:10]} (31... Nxe5 $6 32. g4 Qg5 (32... Qxh3 $2 33. Qxe5 Qh4 34. Rc2 $18) 33. f4 Nxg4 34. Qg3 $16 (34. hxg4 Qxg4+ 35. Rg2 Qd1+ 36. Kh2 Qh5+ 37. Qh3 Qd1 $14)) (31... Rc8 $11) 32. f4 $16 {[%emt 0:00:26]} b4 {[%emt 0:02:38]} 33. Rc2 {[%emt 0:00:13]} Nf8 {[%emt 0:03:24]} 34. Kh2 {[%emt 0:01:00]} Ng6 {[%emt 0:00:42] [#]} 35. Rc7 {[%emt 0:05:31]} (35. Qd2 $1 $16) 35... Ra8 $14 {[%emt 0:01:04]} 36. f5 {[%emt 0:02:20]} Nf8 $1 {[%emt 0:00:59]} (36... exf5 $2 {is the wrong capture.} 37. e6 Kh7 (37... Rf8 $2 38. exf7+ Rxf7 39. Qe8+ Nf8 40. Nc6 $18) 38. Rxf7 $18 (38. exf7 Nf8 $16)) 37. fxe6 {[%emt 0:02:01]} Nxe6 {[%emt 0:00:13]} 38. Nxe6 {[%emt 0:01:42]} fxe6 {[%emt 0:00:01]} 39. Qg3 {[%emt 0:00:20]} Qg5 {[%emt 0:01:26]} 40. Qxg5 {[%emt 0:00:38]} hxg5 {[%emt 0:00:01]} 41. Rc2 {[%emt 0:01:23]} Kf7 {[%emt 0:02:40]} 42. Kg1 {[%emt 0:10:12]} Rh8 {[%emt 0:08:34]} 43. Rc6 {[%emt 0:09:53]} Rh4 {[%emt 0:00:15]} 44. Rb6 {[%emt 0:00:56]} Re4 {[%emt 0:12:43]} 45. Kf2 {[%emt 0:00:03]} g4 {[%emt 0:00:16]} 46. hxg4 {[%emt 0:02:52]} Rxg4 {[%emt 0:01:56]} 47. Kf3 {[%emt 0:00:10]} Re4 {[%emt 0:00:30]} 48. g4 {[%emt 0:00:40]} g5 {[%emt 0:01:04]} 49. Rb7+ {[%emt 0:01:01]} Ke8 {[%emt 0:00:38]} 50. Rb6 {[%emt 0:00:13]} Kd7 {[%emt 0:00:06]} 51. Rd6+ {[%emt 0:00:23]} Ke7 {[%emt 0:00:04]} 52. Rb6 {[%emt 0:00:03]} Rxe5 {[%emt 0:00:50]} 53. Rxb4 {[%emt 0:00:01]} Re1 {[%emt 0:00:10]} 54. a4 {[%emt 0:00:51]} Ra1 {[%emt 0:01:37]} 55. Rb5 {[%emt 0:01:30]} Kd6 {[%emt 0:00:47]} 56. a5 {[%emt 0:00:16]} e5 {[%emt 0:01:27]} 57. b4 $2 {[%emt 0:04:07][%mdl 8192]} (57. Ke3 $11) 57... e4+ $19 {[%emt 0:00:44]} 58. Ke3 {[%emt 0:02:45]} Ke5 {[%emt 0:01:27]} 59. Rc5 {[%emt 0:00:49]} Ra2 {[%emt 0:02:15]} 60. Rb5 {[%emt 0:00:13]} Ra3+ {[%emt 0:01:37]} 61. Kd2 {[%emt 0:00:31]} e3+ {[%emt 0:02:15]} 62. Kc2 {[%emt 0:00:43]} Kd4 {[%emt 0:00:08]} 63. Rb8 {[%emt 0:01:33]} e2 {[%emt 0:00:35]} 0-1

[Event "Sardinia World Festival-A 2024"]
[Site "Orosei"]
[Date "2024.04.29"]
[Round "3.5"]
[White "Huschenbeth, Niclas"]
[Black "Olsen, Filip Boe"]
[Result "1-0"]
[ECO "B12"]
[WhiteElo "2607"]
[BlackElo "2440"]
[Annotator "TA"]
[PlyCount "101"]
[EventDate "2024.04.26"]
[EventType "swiss"]
[EventCountry "ITA"]
[SourceTitle "playchess.com"]
[Source "ChessBase"]
[SourceQuality "1"]
[TimeControl "40/5400+30:1800+30"]

{[%evp 23,101,37,34,18,29,39,47,21,21,7,35,7,0,0,0,0,0,0,0,0,9,-24,42,39,71,75,84,90,79,87,68,85,91,112,157,162,139,150,159,166,157,162,153,159,254,177,252,243,832,798,981,884,1008,953,1407,1090,1664,0,416,0,3039,2186,1571,2616,1754,3468,29956,4618,29960,29959,29956,29959,29962,29964,29964,29964,29965,29963,29984,29983]} 1. e4 {[%emt 0:00:18]} c6 {[%emt 0:00:09]} 2. d4 {[%emt 0:00:09]} d5 {[%emt 0:00:12]} 3. e5 {[%emt 0:00:07]} Bf5 {[%emt 0:00:11]} 4. Nf3 {[%emt 0:00:09]} e6 {[%emt 0:00:14]} 5. Be2 {[%emt 0:00:06]} Nd7 {[%emt 0:00:18]} 6. O-O {[%emt 0:00:11]} a5 {[%emt 0:00:12] B12: Caro-Kann: Advance Variation.} 7. Re1 $5 {[%emt 0:16:28][%mdl 4] Leaves trodden paths.} a4 {[%emt 0:00:29]} 8. Nbd2 {[%emt 0:01:22]} h6 {[%emt 0:02:20]} 9. Nf1 {[%emt 0:02:26]} Bh7 {[%emt 0:01:12]} 10. Ng3 {[%emt 0:11:34]} Ne7 {[%emt 0:00:30]} 11. c3 {[%emt 0:06:57]} c5 {[%emt 0:00:37]} 12. Bb5 {[%emt 0:09:46]} Qa5 $146 {[%emt 0:03:59]} ({Predecessor:} 12... a3 13. bxa3 Nc6 14. a4 Be7 15. c4 Nb6 16. cxd5 Qxd5 17. Ba3 O-O 18. Bxc5 Bxc5 19. dxc5 Qxc5 {1-0 Pranav,V (2545)-Mendonca,L (2596) Sunway Formentera playoff 1-4 blitz 2023 (2.1)}) 13. Bxd7+ {[%emt 0:00:53]} Kxd7 {[%emt 0:00:03]} 14. dxc5 {[%emt 0:00:10]} Nc6 {[%emt 0:20:11]} 15. c4 {[%emt 0:10:34]} Qxc5 {[%emt 0:03:07]} 16. cxd5 {[%emt 0:00:06]} Qxd5 {[%emt 0:00:53]} 17. Qxd5+ {[%emt 0:01:18]} exd5 {[%emt 0:00:03]} 18. Rd1 {[%emt 0:01:22]} Ra5 {[%emt 0:09:17]} 19. Bd2 {[%emt 0:04:43]} Bb4 {[%emt 0:05:52]} 20. a3 {[%emt 0:01:39]} Bxd2 {[%emt 0:00:47]} 21. Rxd2 {[%emt 0:00:05]} Kc7 {[%emt 0:10:22]} 22. Nd4 {[%emt 0:11:27]} Re8 {[%emt 0:09:00]} (22... Nxe5 $11 23. Nh5 Rg8) 23. f4 $14 {[%emt 0:02:49]} g5 {[%emt 0:02:52] [#]} 24. Nh5 $1 {[%emt 0:04:00]} gxf4 {[%emt 0:05:21]} 25. Nf6 {[%emt 0:00:04]} Rh8 {[%emt 0:00:19]} 26. Re1 {[%emt 0:03:54]} Bg6 {[%emt 0:08:59]} 27. h4 {[%emt 0:01:04]} Kb6 {[%emt 0:04:57]} 28. Kf2 {[%emt 0:02:57]} Rc8 {[%emt 0:01:11]} 29. h5 {[%emt 0:01:59]} Be4 {[%emt 0:00:10]} 30. Nxc6 {[%emt 0:00:23]} Rxc6 {[%emt 0:01:28]} 31. Nxe4 {[%emt 0:00:04]} dxe4 {[%emt 0:00:13]} 32. Rxe4 {[%emt 0:00:04]} Re6 {[%emt 0:00:47]} 33. Rde2 {[%emt 0:01:12]} Rd5 {[%emt 0:09:21]} (33... Kc6 $16 34. Kf3 (34. Rxf4 Raxe5 35. Rxe5 Rxe5 $16) 34... Kd7 35. Kxf4 (35. Rxf4 Ke7 $18) 35... Rb6 36. Rd4+ Ke7) 34. Kf3 {[%emt 0:01:27]} (34. Rxa4 $6 Rdxe5 35. Rxe5 Rxe5 $16) 34... Rd3+ {[%emt 0:00:45]} (34... Kc6 $142 35. Rxf4 (35. Rxa4 Rexe5 36. Rxe5 Rxe5 $16) 35... Rdxe5 36. Rxe5 Rxe5) 35. Kxf4 {[%emt 0:00:11]} f6 $2 {[%emt 0:00:02]} (35... Ka5 36. Rf2 f6) 36. Kf5 $18 {[%emt 0:02:40]} Rxe5+ {[%emt 0:00:10]} 37. Rxe5 {[%emt 0:00:04]} ({Worse is} 37. Kxf6 Rxh5 38. Kg6 (38. Rxa4 Rd6+ 39. Kf7 Rf5+ 40. Kg7 h5 $11) 38... Rg5+ 39. Kxh6 Rdg3 $11) 37... fxe5 {[%emt 0:00:08]} 38. g4 {[%emt 0:00:49]} Rf3+ {[%emt 0:01:32]} 39. Kg6 {[%emt 0:01:21]} Rg3 {[%emt 0:00:09]} 40. Kf5 {[%emt 0:03:01]} (40. Rxe5 $142 {[%cal Og4g5] g5! is the strong threat.} Rxg4+ 41. Kxh6) 40... Rf3+ $1 $18 {[%emt 0:01:08]} 41. Kg6 {[%emt 0:13:53]} (41. Kxe5 $142 Kc6 42. Rc2+ Kb5 43. Rc7) 41... Rg3 $18 {[%emt 0:00:31]} 42. Kxh6 {[%emt 0:00:09]} Rxg4 {[%emt 0:00:14]} 43. Rxe5 {[%emt 0:00:08]} Rg2 {[%emt 0:00:26]} 44. Rg5 {[%emt 0:03:00]} Rxb2 {[%emt 0:00:26]} 45. Kg7 {[%emt 0:00:20]} (45. Kg6 $142 Rd2 46. h6 Rd6+ 47. Kh5 Rd7 48. Rf5 Rd3 49. h7 Rd1 50. Kg6 (50. h8=R $2 {too greedy.} Rh1+ 51. Kg4 Rxh8 $19)) 45... Rd2 {[%emt 0:01:01]} 46. h6 {[%emt 0:02:32]} Rd7+ {[%emt 0:00:16]} 47. Kg6 {[%emt 0:00:52]} Rd6+ {[%emt 0:00:06]} 48. Kh5 {[%emt 0:00:07]} Rd7 {[%emt 0:00:05]} 49. Rf5 {[%emt 0:14:06]} Rd3 {[%emt 0:00:53]} 50. h7 {[%emt 0:00:00]} Rxa3 {[%emt 0:00:24]} 51. Rf4 {[%emt 0:01:00]} (51. h8=R $2 {perishes.} Rh3+ 52. Kg4 Rxh8 $19) 1-0

[Event "Sardinia World Festival-A 2024"]
[Site "Orosei"]
[Date "2024.04.29"]
[Round "3.6"]
[White "Sonis, Francesco"]
[Black "Trost, Edvin"]
[Result "1-0"]
[ECO "D12"]
[WhiteElo "2562"]
[BlackElo "2434"]
[Annotator "TA"]
[PlyCount "67"]
[EventDate "2024.04.26"]
[EventType "swiss"]
[EventCountry "ITA"]
[SourceTitle "playchess.com"]
[Source "ChessBase"]
[SourceQuality "1"]
[TimeControl "40/5400+30:1800+30"]

{[%evp 11,66,25,28,19,27,18,38,15,20,10,18,-5,0,0,0,0,16,16,20,0,50,51,41,0,0,0,51,39,56,39,66,70,70,93,74,61,75,47,197,189,652,646,650,605,789,754,897,783,5206,5206,29994,29995,29995,29996,29997,29998,29999]} 1. d4 {[%emt 0:00:04]} d5 {[%emt 0:00:24]} 2. c4 {[%emt 0:00:06]} c6 {[%emt 0:00:07]} 3. Nf3 {[%emt 0:00:56]} Nf6 {[%emt 0:02:17]} 4. e3 {[%emt 0:00:20]} Bf5 {[%emt 0:00:11]} 5. Nc3 {[%emt 0:00:07]} e6 {[%emt 0:00:08]} 6. Nh4 {[%emt 0:00:04]} Bg6 {[%emt 0:00:37]} 7. Qb3 {[%emt 0:03:43]} Qc7 {[%emt 0:00:40]} 8. Nxg6 {[%emt 0:02:33]} hxg6 {[%emt 0:00:18]} 9. h3 {[%emt 0:01:29] White is slightly better.} Be7 {[%emt 0:05:36]} 10. Bd2 {[%emt 0:00:14]} Nbd7 {[%emt 0:02:16]} 11. Rc1 {[%emt 0:00:32]} Nb6 {[%emt 0:02:33]} 12. cxd5 {[%emt 0:04:05]} exd5 {[%emt 0:00:16]} 13. Bd3 {[%emt 0:00:17]} O-O {[%emt 0:09:20]} 14. O-O {[%emt 0:06:36]} Rfe8 {[%emt 0:02:46]} 15. f3 {[%emt 0:09:31][%cal Bf2f3,Bf3e4,Be4e5][%mdl 32]} Qd6 {[%emt 0:11:09]} (15... Nh5 $11) 16. Ne2 $14 {[%emt 0:01:16]} Bd8 {[%emt 0:00:16]} 17. g4 {[%emt 0:17:03][%cal Oe3e4]} (17. e4 $5 dxe4 18. fxe4 $14) 17... Bc7 {[%emt 0:12:52]} 18. Rf2 {[%emt 0:00:07][%cal Oe3e4] Inhibits Qh2+.} a5 {[%emt 0:00:14] [#]} (18... Qe6 $11) 19. e4 $1 {[%emt 0:11:23]} dxe4 {[%emt 0:11:25]} 20. fxe4 {[%emt 0:00:05]} a4 {[%emt 0:14:52]} 21. Qc2 {[%emt 0:00:02] And now e5 would win.} Qe6 {[%emt 0:00:15]} 22. e5 {[%emt 0:07:36]} Nfd5 {[%emt 0:00:06]} 23. Rcf1 $36 {[%emt 0:00:05][%mdl 2048] Black must now prevent Rxf7. White is pushing.} Rf8 {[%emt 0:00:36]} 24. Ng3 {[%emt 0:02:19][%cal Be2g3,Bg3e4,Be4g5,Bg5e6][%mdl 32] Hoping for Ne4. White is more active.} Qe7 {[%emt 0:03:27] A mistake that costs the game.} ({Better is} 24... Nd7 $1 $14) 25. Ne4 $18 {[%emt 0:05:50]} Nb4 $2 {[%emt 0:00:55]} (25... Qh4 26. Rf3 a3) 26. Bxb4 {[%emt 0:00:44]} Qxb4 {[%emt 0:00:58] [#]} 27. Ng5 $1 {[%emt 0:00:29][%cal Od3g6] Threatening mate with Bxg6!} f6 {[%emt 0:15:52]} 28. Ne6 {[%emt 0:00:10]} Nd5 {[%emt 0:01:23]} 29. Bc4 {[%emt 0:02:20]} Bb6 {[%emt 0:01:59]} 30. Qxg6 {[%emt 0:00:34]} Rf7 {[%emt 0:01:09]} 31. Bd3 {[%emt 0:00:23][%csl Gd3][%cal Rg6h7] White mates.} f5 {[%emt 0:00:26]} 32. Bxf5 {[%emt 0:00:09][%csl Gf5][%cal Rg6h7]} Nf6 {[%emt 0:00:34]} 33. exf6 {[%emt 0:00:05][%csl Gf5][%cal Rg6h7]} Bxd4 {[%emt 0:00:18]} 34. Qh7# {[%emt 0:00:05] Weighted Error Value: White=0.06 (flawless) /Black=0.56.  Mistake:       	---       	Black=4      Inaccurate:     	White=2     	Black=1      OK:         	White=8     	Black=5      Best:        	White=2     	---        Brilliant:      	White=1     	---} 1-0

[Event "Sardinia World Festival-A 2024"]
[Site "Orosei"]
[Date "2024.04.29"]
[Round "3.7"]
[White "Kilic, Eray"]
[Black "Sivuk, Vitaly"]
[Result "1-0"]
[ECO "B11"]
[WhiteElo "2429"]
[BlackElo "2551"]
[Annotator "TA"]
[PlyCount "52"]
[EventDate "2024.04.26"]
[EventType "swiss"]
[EventCountry "ITA"]
[SourceTitle "playchess.com"]
[Source "ChessBase"]
[SourceQuality "1"]
[TimeControl "40/5400+30:1800+30"]

{[%evp 12,52,30,22,36,33,36,39,60,43,57,43,50,54,49,41,48,60,68,82,89,60,64,56,56,65,55,50,236,210,205,220,220,183,560,352,1019,991,1258,1055,29985,29986,29991]} 1. e4 {[%emt 0:00:04]} c6 {[%emt 0:00:16]} 2. Nc3 {[%emt 0:00:05]} d5 {[%emt 0:00:12]} 3. Nf3 {[%emt 0:00:04]} Bg4 {[%emt 0:00:15]} 4. h3 {[%emt 0:00:03]} Bxf3 {[%emt 0:00:12]} 5. Qxf3 {[%emt 0:00:05]} Nf6 {[%emt 0:00:14]} 6. d3 {[%emt 0:00:06]} e6 {[%emt 0:06:04]} 7. Bd2 {[%emt 0:00:04]} a5 {[%emt 0:03:28]} 8. g4 {[%emt 0:06:17][%cal Bg2g4,Bg4g5][%mdl 32]} a4 {[%emt 0:03:29]} 9. a3 {[%emt 0:01:28]} Be7 {[%emt 0:08:09] White is slightly better.} 10. g5 {[%emt 0:05:12]} Nfd7 {[%emt 0:00:07]} 11. h4 {[%emt 0:00:06]} Qb6 {[%emt 0:00:18]} 12. O-O-O $1 {[%emt 0:05:53][%cal Od3d4]} d4 {[%emt 0:06:13]} 13. Ne2 {[%emt 0:01:41]} c5 {[%emt 0:01:17][%cal Oc5c4]} 14. h5 {[%emt 0:01:13][%cal Og5g6]} Rf8 {[%emt 0:03:03][%cal Oc5c4]} 15. Qg3 {[%emt 0:03:39]} g6 {[%emt 0:01:26]} 16. hxg6 {[%emt 0:03:36]} hxg6 {[%emt 0:00:05]} 17. f4 {[%emt 0:00:08][%cal Bf2f4,Bf4f5][%mdl 32] White is more active.} Nc6 {[%emt 0:00:16][%cal Oc5c4] [#]} 18. f5 $1 $36 {[%emt 0:02:13][%mdl 2048] White fights for an advantage.} Nce5 {[%emt 0:02:53]} 19. Nf4 {[%emt 0:04:47]} Rc8 $2 {[%emt 0:00:25] Loses the game.} (19... O-O-O $14) 20. fxe6 {[%emt 0:05:10]} fxe6 {[%emt 0:03:40]} 21. Rh7 {[%emt 0:00:55]} Rc6 {[%emt 0:01:45]} 22. Bh3 {[%emt 0:02:24]} Rg8 $2 {[%emt 0:07:52]} (22... c4 {is tougher.} 23. dxc4 Bc5) 23. Re1 {[%emt 0:01:54][%cal Of4d5] Threatens to win with Nd5!} c4 $2 {[%emt 0:04:58] [#]} (23... Bd8 24. Kb1 Nf8) 24. Nd5 $1 $18 {[%emt 0:02:55][%mdl 512]} exd5 {[%emt 0:00:39]} (24... Qb5 25. Rxe7+) 25. Bxd7+ {[%emt 0:00:29]} Nxd7 {[%emt 0:04:51]} 26. exd5 {[%emt 0:00:10]} Qd8 {[%emt 0:41:23] Weighted Error Value: White=0.29 (precise) /Black=0.91.  Loses game:     	---       	Black=1      Mistake:       	---       	Black=2      Inaccurate:     	White=2     	---        OK:         	White=6     	Black=3      Best:        	---       	Black=2      Strong:       	White=1     	---        Brilliant:      	White=1     	---} 1-0

[Event "Sardinia World Festival-A 2024"]
[Site "Orosei"]
[Date "2024.04.29"]
[Round "3.8"]
[White "Kanov, Nikola"]
[Black "Bharath Subramaniyam H"]
[Result "0-1"]
[ECO "B90"]
[WhiteElo "2423"]
[BlackElo "2544"]
[Annotator "TA"]
[PlyCount "66"]
[EventDate "2024.04.26"]
[EventType "swiss"]
[EventCountry "ITA"]
[SourceTitle "playchess.com"]
[Source "ChessBase"]
[SourceQuality "1"]
[TimeControl "40/5400+30:1800+30"]

{[%evp 13,66,18,23,11,0,13,16,11,24,30,33,27,33,26,16,8,29,13,16,8,16,0,0,0,0,0,0,-135,-128,-125,-133,-116,-111,-255,-62,-224,-204,-343,-335,-389,-384,-370,-350,-627,-590,-6704,-1012,-2095,-2194,-1766,-1675,-29986,-29987,-29985,-5314]} 1. e4 {[%emt 0:00:03]} c5 {[%emt 0:01:11]} 2. Nf3 {[%emt 0:00:03]} d6 {[%emt 0:00:12]} 3. d4 {[%emt 0:00:11]} cxd4 {[%emt 0:00:06]} 4. Nxd4 {[%emt 0:00:08]} Nf6 {[%emt 0:00:07]} 5. Nc3 {[%emt 0:00:12]} a6 {[%emt 0:00:43]} 6. Be3 {[%emt 0:00:33]} e5 {[%emt 0:01:08]} 7. Nb3 {[%emt 0:00:24]} Be6 {[%emt 0:00:51]} 8. h3 {[%emt 0:00:28]} Be7 {[%emt 0:01:22]} 9. f4 {[%emt 0:00:26]} exf4 {[%emt 0:00:54]} 10. Bxf4 {[%emt 0:00:10] The position is equal.} Nc6 {[%emt 0:00:12]} 11. Qe2 {[%emt 0:00:23]} Ne5 {[%emt 0:01:17]} 12. O-O-O {[%emt 0:00:24] Bxe5 is the strong threat.} Nfd7 {[%emt 0:00:25]} 13. Kb1 {[%emt 0:00:34]} Rc8 {[%emt 0:01:28][%cal Oc8c3]} 14. Qe3 {[%emt 0:01:35]} O-O {[%emt 1:27:34]} 15. g4 {[%emt 0:00:25]} h6 {[%emt 0:00:00]} 16. Nd4 {[%emt 0:04:54]} Bf6 {[%emt 0:00:00]} 17. Nxe6 {[%emt 0:22:00]} (17. Nf5 {seems wilder.} Ng6 18. Bxd6 Bxc3 19. Bxf8 Bxb2 20. Kxb2 Qxf8 21. c3) 17... fxe6 {[%emt 0:00:00]} 18. Rxd6 {[%emt 0:02:54]} Qe7 {[%emt 0:00:00]} 19. Rd1 {[%emt 0:06:35]} Rc6 {[%emt 0:00:00]} 20. Be2 {[%emt 0:15:00]} (20. Qg3 $1 $11) 20... Nb6 $1 $17 {[%emt 0:00:00] ...Nec4 would now be deadly. Excellent horsemanship.} 21. Nd5 {[%emt 0:22:12]} exd5 {[%emt 0:00:00]} 22. exd5 {[%emt 0:00:07]} Rd6 {[%emt 0:00:00]} 23. Rhe1 {[%emt 0:02:06]} (23. c4 $17 {was necessary.} Nbxc4 (23... Nexc4 24. Qxe7 Bxe7 25. Bxd6 $19) 24. Bxc4 Nxc4 25. Qxe7 Bxe7 26. Bxd6 Bxd6 27. Rc1) 23... Na4 $2 {[%emt 0:00:00]} (23... Nxd5 $19 24. Qb3 Bh4) 24. Qa3 {[%emt 0:09:21]} (24. Qd4 $1 $15 Nb6 25. Bg3) 24... Qd7 $1 $19 {[%emt 0:00:00][%cal Od6b6] And now ...Rb6! would win.} 25. g5 {[%emt 0:01:15]} (25. Rd4 {only move.} b5 (25... Rxd5 $2 26. Qb3 $18) 26. Qg3) 25... hxg5 {[%emt 0:00:00]} (25... Bxg5 $2 26. Bxe5 Rdf6 27. b3 $18) 26. Bxe5 {[%emt 0:04:37]} Bxe5 {[%emt 0:00:00]} 27. Bg4 {[%emt 0:00:06] [#]} Nc3+ $1 {[%emt 0:00:00]} (27... Bxb2 28. Bxd7 Bxa3 29. Bxa4 $15) 28. bxc3 $2 {[%emt 0:01:39] [#]} (28. Qxc3 Bxc3 29. Bxd7 Bxe1 30. Be6+ Rxe6 31. dxe6) 28... Rb6+ $1 {[%emt 0:00:00]} 29. Ka1 {[%emt 0:00:28]} Qd6 {[%emt 0:00:00]} (29... Qa4 $142 30. Qb3 Rxb3 31. cxb3 Qa5 (31... Bxc3+ $2 32. Kb1 $19)) 30. Be6+ {[%emt 0:02:21]} Kh8 {[%emt 0:00:00]} 31. Qa5 {[%emt 0:01:25]} Rb5 {[%emt 0:00:00]} 32. Rxe5 {[%emt 0:01:02]} Rxa5 {[%emt 0:00:00]} 33. Rxg5 {[%emt 0:00:06]} Rf6 {[%emt 0:00:00] Weighted Error Value: White=1.01/Black=0.32.  Loses game:     	White=1     	---        Missed win:     	---       	Black=1      Mistake:       	White=4     	---        Inaccurate:     	White=2     	---        OK:         	White=7     	Black=10     Best:        	White=2     	Black=2      Strong:       	---       	Black=3} (33... g6 $142 34. h4 Rf6 (34... Qa3 $2 35. d6 $19) 35. h5 Rxe6 36. dxe6 Qxd1+ (36... Rxg5 $2 {too greedy.} 37. Rxd6 Re5 38. hxg6 $18) 37. Kb2 Rxg5 38. a4 Rg2 (38... gxh5 {is a self mate.} 39. e7 Qe1 40. e8=Q+ Qxe8 41. Kb3 Rg3 42. Kb2 Qxa4 43. Kc1 Rg2 44. Kb2 Rxc2+ 45. Kb1 Qa2#) 39. Kb3 b6 (39... Qxh5 {gets mated.} 40. e7 Qe2 41. Ka3 Qxe7+ 42. Kb3 Qe6+ 43. Kb2 Qc4 44. Kb1 Qxc3 45. Ka2 Rxc2+ 46. Kb1 Qb2#) 40. hxg6 Qxc2+ 41. Kc4 Qe4+ (41... Qxg6 42. Kd5 Qf5+ 43. Kc6 Qxe6+ 44. Kb7 b5 45. axb5 Rg7+ 46. Kb8 Qg8#) 42. Kb3 Qxe6+ (42... Rxg6 43. e7 Qxe7 44. Kc2 Qe4+ 45. Kb2 Qc4 46. Kb1 Rg2 47. Kc1 Qf1#) (42... Qd5+ $2 43. c4 Qf3+ 44. Kb4 Rb2#) 43. c4 Qh3+ 44. Kb4 Rb2#) 0-1